[Event "*** Titled Tuesday Blitz"]
[Site "Chess.com"]
[Date "2021.03.09"]
[Round "10"]
[White "Nemsko"]
[Black "Balla_Tamas"]
[Result "1/2-1/2"]
[WhiteElo "2296"]
[BlackElo "2443"]
[TimeControl "180+1"]
[EndTime "12:00:42 PST"]
[Termination "Game drawn - insufficient material"]

1. e4 {[%clk 0:03:00.9]} 1... c5 {[%clk 0:02:55.3]} 2. Nf3 {[%clk 0:03:00.9]}
2... e6 {[%clk 0:02:54.9]} 3. d4 {[%clk 0:03:01.8]} 3... cxd4 {[%clk 0:02:55.2]}
4. Nxd4 {[%clk 0:03:02.7]} 4... a6 {[%clk 0:02:55.7]} 5. c4 {[%clk 0:03:02.3]}
5... Nf6 {[%clk 0:02:54.9]} 6. Nc3 {[%clk 0:03:02.5]} 6... Qc7 {[%clk
0:02:55.5]} 7. Be3 {[%clk 0:02:56]} 7... Bb4 {[%clk 0:02:54.5]} 8. Qd3 {[%clk
0:02:50.5]} 8... d5 {[%clk 0:02:51.2]} 9. exd5 {[%clk 0:02:45.7]} 9... exd5
{[%clk 0:02:50.1]} 10. cxd5 {[%clk 0:02:42]} 10... Nxd5 {[%clk 0:02:47.9]} 11.
Bd2 {[%clk 0:02:37.4]} 11... Nxc3 {[%clk 0:02:45.6]} 12. bxc3 {[%clk 0:02:38.3]}
12... Bc5 {[%clk 0:02:38.5]} 13. Be2 {[%clk 0:02:37.6]} 13... O-O {[%clk
0:02:36.8]} 14. O-O {[%clk 0:02:37.1]} 14... Nc6 {[%clk 0:02:19.9]} 15. Nxc6
{[%clk 0:02:30.6]} 15... Qxc6 {[%clk 0:02:18]} 16. Bf3 {[%clk 0:02:31.1]} 16...
Qc7 {[%clk 0:02:17.5]} 17. Be3 {[%clk 0:02:23]} 17... Bxe3 {[%clk 0:02:14.7]}
18. Qxe3 {[%clk 0:02:23.9]} 18... Be6 {[%clk 0:02:12.9]} 19. Rab1 {[%clk
0:02:18.4]} 19... Rab8 {[%clk 0:02:13]} 20. Rb2 {[%clk 0:02:16.2]} 20... b5
{[%clk 0:02:12.2]} 21. h3 {[%clk 0:02:12.2]} 21... Rbc8 {[%clk 0:02:10.5]} 22.
Rc1 {[%clk 0:02:08.1]} 22... Qc5 {[%clk 0:02:10.1]} 23. Qf4 {[%clk 0:01:48.3]}
23... Rc7 {[%clk 0:02:07.6]} 24. Be4 {[%clk 0:01:43.5]} 24... Qc4 {[%clk
0:02:01]} 25. Rd2 {[%clk 0:01:25.8]} 25... Rfc8 {[%clk 0:01:48.3]} 26. Qh4
{[%clk 0:01:09.3]} 26... f5 {[%clk 0:01:38.1]} 27. Rd8+ {[%clk 0:01:04]} 27...
Rxd8 {[%clk 0:01:38.2]} 28. Qxd8+ {[%clk 0:01:04.9]} 28... Kf7 {[%clk
0:01:38.8]} 29. Bf3 {[%clk 0:01:00.9]} 29... Rd7 {[%clk 0:01:38.9]} 30. Qh8
{[%clk 0:00:48.8]} 30... Qh4 {[%clk 0:01:31.8]} 31. Qb8 {[%clk 0:00:22.9]} 31...
Rd2 {[%clk 0:01:19.9]} 32. Qb6 {[%clk 0:00:19.4]} 32... Rxa2 {[%clk 0:01:11]}
33. Re1 {[%clk 0:00:18.4]} 33... Qf6 {[%clk 0:01:11]} 34. Qc7+ {[%clk
0:00:13.2]} 34... Qe7 {[%clk 0:01:09.4]} 35. Qxe7+ {[%clk 0:00:11.9]} 35... Kxe7
{[%clk 0:01:08.9]} 36. Bd5 {[%clk 0:00:12.3]} 36... Rc2 {[%clk 0:01:05.6]} 37.
Rxe6+ {[%clk 0:00:11.5]} 37... Kd7 {[%clk 0:01:05.9]} 38. Rxa6 {[%clk
0:00:08.9]} 38... Rxc3 {[%clk 0:01:05.1]} 39. Bf3 {[%clk 0:00:08.1]} 39... Ke7
{[%clk 0:01:04.6]} 40. Rb6 {[%clk 0:00:07.8]} 40... Rb3 {[%clk 0:01:03.6]} 41.
Kh2 {[%clk 0:00:05.9]} 41... b4 {[%clk 0:01:03.6]} 42. Rb7+ {[%clk 0:00:03.3]}
42... Kf6 {[%clk 0:01:03.2]} 43. Rb6+ {[%clk 0:00:03.4]} 43... Ke7 {[%clk
0:01:03.3]} 44. Rb7+ {[%clk 0:00:03.4]} 44... Kf6 {[%clk 0:01:03.4]} 45. Rb6+
{[%clk 0:00:03.2]} 45... Kg5 {[%clk 0:01:03.5]} 46. Rb5 {[%clk 0:00:03.2]} 46...
g6 {[%clk 0:01:03]} 47. Bd5 {[%clk 0:00:01.9]} 47... Rb2 {[%clk 0:01:01.9]} 48.
Bc4 {[%clk 0:00:01.3]} 48... Rxf2 {[%clk 0:01:00.8]} 49. Rxb4 {[%clk 0:00:01.2]}
49... Rf4 {[%clk 0:01:00.7]} 50. Kg3 {[%clk 0:00:01.6]} 50... h5 {[%clk
0:00:59.8]} 51. Ra4 {[%clk 0:00:02.2]} 51... h4+ {[%clk 0:00:59.8]} 52. Kh2
{[%clk 0:00:02.9]} 52... Re4 {[%clk 0:01:00.2]} 53. Bb5 {[%clk 0:00:03.6]} 53...
Re3 {[%clk 0:00:59.3]} 54. Rb4 {[%clk 0:00:03.7]} 54... Rg3 {[%clk 0:00:59.3]}
55. Be8 {[%clk 0:00:03.7]} 55... Re3 {[%clk 0:00:59]} 56. Rb6 {[%clk 0:00:04.3]}
56... Rxe8 {[%clk 0:00:58.4]} 57. Rb4 {[%clk 0:00:04.6]} 57... Re3 {[%clk
0:00:58]} 58. Rb6 {[%clk 0:00:04.6]} 58... Rg3 {[%clk 0:00:57.8]} 59. Rb4 {[%clk
0:00:04.9]} 59... Rd3 {[%clk 0:00:57.7]} 60. Rb6 {[%clk 0:00:05.1]} 60... Re3
{[%clk 0:00:58.3]} 61. Rb4 {[%clk 0:00:05.7]} 61... Re4 {[%clk 0:00:59.2]} 62.
Rb6 {[%clk 0:00:06.3]} 62... Kh5 {[%clk 0:00:59.5]} 63. Rb8 {[%clk 0:00:06.4]}
63... Re1 {[%clk 0:00:58.9]} 64. Rh8+ {[%clk 0:00:07]} 64... Kg5 {[%clk
0:00:58.7]} 65. Rb8 {[%clk 0:00:07.3]} 65... Kf4 {[%clk 0:00:58.8]} 66. Rb4+
{[%clk 0:00:07.8]} 66... Kg5 {[%clk 0:00:58.5]} 67. Rb8 {[%clk 0:00:08.3]} 67...
Kf6 {[%clk 0:00:58.5]} 68. Rb4 {[%clk 0:00:08.5]} 68... g5 {[%clk 0:00:58.5]}
69. Rb6+ {[%clk 0:00:09.1]} 69... Re6 {[%clk 0:00:57.1]} 70. Rb4 {[%clk
0:00:08.9]} 70... Re1 {[%clk 0:00:55.5]} 71. Rb6+ {[%clk 0:00:08.9]} 71... Kg7
{[%clk 0:00:56]} 72. Rb7+ {[%clk 0:00:09.1]} 72... Kg6 {[%clk 0:00:56.5]} 73.
Rb6+ {[%clk 0:00:09.3]} 73... Kh5 {[%clk 0:00:56.7]} 74. Rb5 {[%clk 0:00:09.2]}
74... Rf1 {[%clk 0:00:54]} 75. Rb4 {[%clk 0:00:09]} 75... g4 {[%clk 0:00:54]}
76. hxg4+ {[%clk 0:00:08.6]} 76... fxg4 {[%clk 0:00:54.9]} 77. Rb5+ {[%clk
0:00:07.7]} 77... Kg6 {[%clk 0:00:55.5]} 78. Rb6+ {[%clk 0:00:07.8]} 78... Kg5
{[%clk 0:00:56.4]} 79. Rb5+ {[%clk 0:00:08.4]} 79... Rf5 {[%clk 0:00:56.9]} 80.
Rb4 {[%clk 0:00:06.3]} 80... Rf4 {[%clk 0:00:56.9]} 81. Rb5+ {[%clk 0:00:06.4]}
81... Rf5 {[%clk 0:00:57.8]} 82. Rb4 {[%clk 0:00:06.6]} 82... Rc5 {[%clk
0:00:56.6]} 83. Rb8 {[%clk 0:00:06.2]} 83... Rc2 {[%clk 0:00:56.4]} 84. Rg8+
{[%clk 0:00:06.3]} 84... Kf5 {[%clk 0:00:56.8]} 85. Rf8+ {[%clk 0:00:06.8]}
85... Ke5 {[%clk 0:00:57.1]} 86. Re8+ {[%clk 0:00:07.3]} 86... Kf6 {[%clk
0:00:57.6]} 87. Rf8+ {[%clk 0:00:07.6]} 87... Ke7 {[%clk 0:00:57.9]} 88. Rf4
{[%clk 0:00:07.3]} 88... h3 {[%clk 0:00:55.4]} 89. Rxg4 {[%clk 0:00:06.8]} 89...
Rxg2+ {[%clk 0:00:56.3]} 90. Rxg2 {[%clk 0:00:07.6]} 90... hxg2 {[%clk
0:00:56.9]} 91. Kxg2 {[%clk 0:00:08.5]} 1/2-1/2

[Event "*** Titled Tuesday Blitz"]
[Site "Chess.com"]
[Date "2021.03.09"]
[Round "10"]
[White "kuba2006"]
[Black "PetrolulSah"]
[Result "1-0"]
[WhiteElo "2349"]
[BlackElo "2205"]
[TimeControl "180+1"]
[EndTime "12:00:45 PST"]
[Termination "kuba2006 won by resignation"]

1. b3 {[%clk 0:03:00.9]} 1... Nf6 {[%clk 0:02:59.1]} 2. Bb2 {[%clk 0:03:01.8]}
2... g6 {[%clk 0:02:58.2]} 3. e4 {[%clk 0:03:00.8]} 3... Bg7 {[%clk 0:02:57.5]}
4. e5 {[%clk 0:03:00.8]} 4... Nd5 {[%clk 0:02:57.2]} 5. c4 {[%clk 0:03:01.2]}
5... Nb6 {[%clk 0:02:57]} 6. d4 {[%clk 0:03:01.1]} 6... O-O {[%clk 0:02:55.9]}
7. Nf3 {[%clk 0:02:58.5]} 7... d6 {[%clk 0:02:55.3]} 8. exd6 {[%clk 0:02:57.3]}
8... cxd6 {[%clk 0:02:52.6]} 9. Be2 {[%clk 0:02:53.9]} 9... Nc6 {[%clk
0:02:51.9]} 10. O-O {[%clk 0:02:51.2]} 10... Bg4 {[%clk 0:02:51.7]} 11. Nbd2
{[%clk 0:02:49.7]} 11... e5 {[%clk 0:02:42.3]} 12. dxe5 {[%clk 0:02:37.9]} 12...
dxe5 {[%clk 0:02:41.2]} 13. h3 {[%clk 0:02:38.3]} 13... Bf5 {[%clk 0:02:35.8]}
14. Nh2 {[%clk 0:02:01.9]} 14... Nd4 {[%clk 0:02:32.9]} 15. Bxd4 {[%clk
0:01:43.4]} 15... exd4 {[%clk 0:02:29.3]} 16. Bg4 {[%clk 0:01:43.9]} 16... Qd7
{[%clk 0:02:13.6]} 17. Bxf5 {[%clk 0:01:38.2]} 17... Qxf5 {[%clk 0:02:13]} 18.
Qf3 {[%clk 0:01:38.2]} 18... Qxf3 {[%clk 0:02:09]} 19. Nhxf3 {[%clk 0:01:39.1]}
19... Rfe8 {[%clk 0:02:07.5]} 20. Rfe1 {[%clk 0:01:36.8]} 20... f5 {[%clk
0:02:04.2]} 21. Rxe8+ {[%clk 0:01:32.1]} 21... Rxe8 {[%clk 0:02:05.1]} 22. Re1
{[%clk 0:01:32.1]} 22... Rxe1+ {[%clk 0:01:50.2]} 23. Nxe1 {[%clk 0:01:33]}
23... Kf7 {[%clk 0:01:33.9]} 24. Nd3 {[%clk 0:01:31.7]} 24... Nd7 {[%clk
0:01:31.9]} 25. f4 {[%clk 0:01:16.1]} 25... Bf8 {[%clk 0:01:27.4]} 26. Nf3
{[%clk 0:01:13.8]} 26... Nc5 {[%clk 0:01:21.6]} 27. Nde5+ {[%clk 0:01:11.3]}
27... Ke8 {[%clk 0:01:12.5]} 28. Nxd4 {[%clk 0:01:09.7]} 28... Ne4 {[%clk
0:01:12.7]} 29. Kf1 {[%clk 0:00:35.9]} 29... Bc5 {[%clk 0:01:01.4]} 30. Nef3
{[%clk 0:00:23.4]} 30... Ng3+ {[%clk 0:00:55.9]} 31. Ke1 {[%clk 0:00:21.3]}
31... Nh5 {[%clk 0:00:53.2]} 32. Ne6 {[%clk 0:00:18.9]} 32... Be3 {[%clk
0:00:53.2]} 33. g4 {[%clk 0:00:07.2]} 33... fxg4 {[%clk 0:00:49.8]} 34. hxg4
{[%clk 0:00:08.1]} 34... Nxf4 {[%clk 0:00:49.7]} 35. Nc7+ {[%clk 0:00:07.6]}
35... Kd7 {[%clk 0:00:48.5]} 36. Nb5 {[%clk 0:00:06.5]} 36... a6 {[%clk
0:00:47.8]} 37. Nc3 {[%clk 0:00:06.7]} 37... Bc5 {[%clk 0:00:37.4]} 38. Ne4
{[%clk 0:00:06.4]} 38... Be7 {[%clk 0:00:37]} 39. Kd2 {[%clk 0:00:04.1]} 39...
h5 {[%clk 0:00:35.5]} 40. gxh5 {[%clk 0:00:03.2]} 40... gxh5 {[%clk 0:00:36.4]}
41. Ke3 {[%clk 0:00:03.7]} 41... Ne6 {[%clk 0:00:36.1]} 42. Ne5+ {[%clk
0:00:03]} 42... Ke8 {[%clk 0:00:35.4]} 43. Kf3 {[%clk 0:00:02.5]} 43... Ng5+
{[%clk 0:00:30.7]} 44. Nxg5 {[%clk 0:00:02.3]} 44... Bxg5 {[%clk 0:00:31.6]} 45.
Ng6 {[%clk 0:00:01.8]} 45... Kf7 {[%clk 0:00:29.5]} 46. Ne5+ {[%clk 0:00:02.4]}
46... Ke6 {[%clk 0:00:29.6]} 47. Nd3 {[%clk 0:00:03]} 47... b6 {[%clk 0:00:28]}
48. Ke4 {[%clk 0:00:03.3]} 48... Be7 {[%clk 0:00:25.5]} 49. Nf4+ {[%clk
0:00:02.9]} 49... Kd6 {[%clk 0:00:24.1]} 50. Nxh5 {[%clk 0:00:03.8]} 50... Kc5
{[%clk 0:00:23.9]} 51. Nf4 {[%clk 0:00:04.5]} 51... Bh4 {[%clk 0:00:20.5]} 52.
Nd3+ {[%clk 0:00:04.1]} 52... Kd6 {[%clk 0:00:20.1]} 53. Kd4 {[%clk 0:00:04.1]}
53... Bf6+ {[%clk 0:00:19.2]} 54. Ke4 {[%clk 0:00:04.2]} 54... Bg7 {[%clk
0:00:19.6]} 55. Kf5 {[%clk 0:00:04.2]} 55... Bh8 {[%clk 0:00:18.9]} 56. Kg6
{[%clk 0:00:04.1]} 56... b5 {[%clk 0:00:19]} 57. c5+ {[%clk 0:00:03.9]} 57...
Kd5 {[%clk 0:00:18.8]} 58. b4 {[%clk 0:00:04]} 58... Kd4 {[%clk 0:00:16.1]} 59.
c6 {[%clk 0:00:03.8]} 59... Kxd3 {[%clk 0:00:15.5]} 60. c7 {[%clk 0:00:04]}
60... Bc3 {[%clk 0:00:12.2]} 61. c8=Q {[%clk 0:00:04.9]} 61... Bxb4 {[%clk
0:00:12.4]} 62. Qxa6 {[%clk 0:00:05.4]} 62... Kc4 {[%clk 0:00:10.9]} 63. Qc6+
{[%clk 0:00:05.9]} 63... Bc5 {[%clk 0:00:11.1]} 64. Kf5 {[%clk 0:00:06.5]} 64...
b4 {[%clk 0:00:11.3]} 65. Ke4 {[%clk 0:00:07.1]} 65... b3 {[%clk 0:00:11.3]} 66.
axb3+ {[%clk 0:00:06.9]} 66... Kb4 {[%clk 0:00:12.2]} 67. Qa4+ {[%clk 0:00:07]}
67... Kc3 {[%clk 0:00:11.5]} 68. Qc4+ {[%clk 0:00:07.9]} 68... Kb2 {[%clk
0:00:12.3]} 69. Qxc5 {[%clk 0:00:08.3]} 69... Kb1 {[%clk 0:00:12.1]} 70. b4
{[%clk 0:00:08.6]} 70... Ka2 {[%clk 0:00:13]} 71. b5 {[%clk 0:00:09.5]} 1-0

[Event "*** Titled Tuesday Blitz"]
[Site "Chess.com"]
[Date "2021.03.09"]
[Round "10"]
[White "LubovMarkelova"]
[Black "JiiHart"]
[Result "1-0"]
[WhiteElo "2224"]
[BlackElo "2068"]
[TimeControl "180+1"]
[EndTime "12:00:48 PST"]
[Termination "LubovMarkelova won by resignation"]

1. Nf3 {[%clk 0:02:42.7]} 1... Nf6 {[%clk 0:02:59]} 2. c4 {[%clk 0:02:38.8]}
2... e6 {[%clk 0:02:58.7]} 3. Nc3 {[%clk 0:02:31.2]} 3... c5 {[%clk 0:02:58.2]}
4. e3 {[%clk 0:01:49.2]} 4... Nc6 {[%clk 0:02:56.5]} 5. d4 {[%clk 0:01:49.4]}
5... d5 {[%clk 0:02:56.4]} 6. cxd5 {[%clk 0:01:49.4]} 6... Nxd5 {[%clk
0:02:52.6]} 7. Bd3 {[%clk 0:01:49.4]} 7... cxd4 {[%clk 0:02:48.8]} 8. exd4
{[%clk 0:01:50.3]} 8... Be7 {[%clk 0:02:48.5]} 9. O-O {[%clk 0:01:49.9]} 9...
O-O {[%clk 0:02:45.7]} 10. Re1 {[%clk 0:01:45.9]} 10... Bf6 {[%clk 0:02:40.5]}
11. Ne4 {[%clk 0:01:40.5]} 11... h6 {[%clk 0:02:02.5]} 12. Nxf6+ {[%clk
0:01:34.6]} 12... Qxf6 {[%clk 0:01:53.7]} 13. Be4 {[%clk 0:01:32.4]} 13... Rd8
{[%clk 0:01:47.5]} 14. Be3 {[%clk 0:01:25.4]} 14... Bd7 {[%clk 0:01:29.7]} 15.
Rc1 {[%clk 0:01:24.9]} 15... Be8 {[%clk 0:01:16.5]} 16. Qe2 {[%clk 0:01:17.8]}
16... a6 {[%clk 0:01:07.5]} 17. Bb1 {[%clk 0:01:11.5]} 17... Nf4 {[%clk
0:01:02.2]} 18. Qc2 {[%clk 0:00:58.7]} 18... g6 {[%clk 0:00:59.4]} 19. Qe4
{[%clk 0:00:51.8]} 19... g5 {[%clk 0:00:25.3]} 20. Ne5 {[%clk 0:00:46.3]} 20...
Nxe5 {[%clk 0:00:20.2]} 21. dxe5 {[%clk 0:00:46.1]} 21... Qg6 {[%clk 0:00:18.6]}
22. Qxb7 {[%clk 0:00:41.6]} 22... Rab8 {[%clk 0:00:16.1]} 23. Qxb8 {[%clk
0:00:38.6]} 23... Rxb8 {[%clk 0:00:15.7]} 24. Bxg6 {[%clk 0:00:38.5]} 24... Nxg6
{[%clk 0:00:16]} 25. b3 {[%clk 0:00:37.5]} 25... Nxe5 {[%clk 0:00:15.2]} 26. Ba7
{[%clk 0:00:37.1]} 26... Rb5 {[%clk 0:00:15.2]} 27. Rc8 {[%clk 0:00:35.3]} 27...
Kf8 {[%clk 0:00:13.8]} 28. a4 {[%clk 0:00:35.5]} 28... Rd5 {[%clk 0:00:13.2]}
29. Bc5+ {[%clk 0:00:33.1]} 29... Rxc5 {[%clk 0:00:12.8]} 30. Rxc5 {[%clk
0:00:32.6]} 30... Nd3 {[%clk 0:00:13.5]} 31. Rec1 {[%clk 0:00:28.5]} 31... Nxc1
{[%clk 0:00:12.9]} 32. Rxc1 {[%clk 0:00:28.7]} 32... Ke7 {[%clk 0:00:12.5]} 33.
f3 {[%clk 0:00:26.1]} 33... Kd6 {[%clk 0:00:12.5]} 34. Kf2 {[%clk 0:00:26]}
34... Bc6 {[%clk 0:00:12.2]} 35. Ke3 {[%clk 0:00:26]} 35... f5 {[%clk
0:00:11.6]} 36. Rc3 {[%clk 0:00:18.8]} 36... e5 {[%clk 0:00:11.5]} 37. h4 {[%clk
0:00:16]} 37... f4+ {[%clk 0:00:11.1]} 38. Kd2 {[%clk 0:00:15]} 38... gxh4
{[%clk 0:00:11.3]} 39. Rc1 {[%clk 0:00:14.5]} 39... h3 {[%clk 0:00:10.8]} 40.
gxh3 {[%clk 0:00:13.9]} 40... Bxf3 {[%clk 0:00:11.2]} 41. h4 {[%clk 0:00:13.9]}
41... Bd5 {[%clk 0:00:11.1]} 42. b4 {[%clk 0:00:13.5]} 42... e4 {[%clk
0:00:11.1]} 43. b5 {[%clk 0:00:13.5]} 43... axb5 {[%clk 0:00:10.1]} 44. axb5
{[%clk 0:00:13.8]} 44... e3+ {[%clk 0:00:10.6]} 45. Ke2 {[%clk 0:00:13.8]} 45...
Ke5 {[%clk 0:00:10.5]} 46. b6 {[%clk 0:00:13.9]} 46... Ke4 {[%clk 0:00:11]} 47.
Rc5 {[%clk 0:00:09.3]} 47... f3+ {[%clk 0:00:11.1]} 48. Ke1 {[%clk 0:00:09.7]}
48... f2+ {[%clk 0:00:10.3]} 49. Ke2 {[%clk 0:00:09.3]} 49... Bb7 {[%clk
0:00:09.7]} 50. Rc4+ {[%clk 0:00:07.3]} 50... Kd5 {[%clk 0:00:09.9]} 51. Ra4
{[%clk 0:00:06.5]} 51... Bc6 {[%clk 0:00:07.2]} 52. Ra1 {[%clk 0:00:06.6]} 52...
Bb5+ {[%clk 0:00:06.5]} 53. Kxe3 {[%clk 0:00:07.1]} 53... Kc6 {[%clk 0:00:04.3]}
54. Rc1+ {[%clk 0:00:04.9]} 54... Kxb6 {[%clk 0:00:04.1]} 55. Kxf2 {[%clk
0:00:05.8]} 55... Bc6 {[%clk 0:00:03.7]} 56. Kg3 {[%clk 0:00:06.7]} 56... Kc7
{[%clk 0:00:04]} 57. Kf4 {[%clk 0:00:07.1]} 57... Kd7 {[%clk 0:00:02.3]} 58. Kf5
{[%clk 0:00:07.5]} 58... Bf3 {[%clk 0:00:01.8]} 59. Kg6 {[%clk 0:00:06.7]} 59...
h5 {[%clk 0:00:01.9]} 60. Kg5 {[%clk 0:00:07]} 60... Kd6 {[%clk 0:00:02.1]} 61.
Rc3 {[%clk 0:00:07.3]} 61... Kd5 {[%clk 0:00:01.9]} 62. Rxf3 {[%clk 0:00:07]}
62... Ke4 {[%clk 0:00:02.6]} 63. Rf8 {[%clk 0:00:06.5]} 63... Ke3 {[%clk
0:00:03.3]} 64. Kxh5 {[%clk 0:00:07.4]} 64... Ke4 {[%clk 0:00:04.1]} 65. Kg6
{[%clk 0:00:08.3]} 65... Ke5 {[%clk 0:00:04.8]} 66. h5 {[%clk 0:00:09.2]} 66...
Ke6 {[%clk 0:00:05.4]} 67. h6 {[%clk 0:00:09.6]} 67... Ke7 {[%clk 0:00:06.3]}
68. Kg7 {[%clk 0:00:10.2]} 68... Ke6 {[%clk 0:00:05.8]} 69. h7 {[%clk
0:00:10.5]} 1-0

[Event "*** Titled Tuesday Blitz"]
[Site "Chess.com"]
[Date "2021.03.09"]
[Round "10"]
[White "AliKa2810"]
[Black "kai_nov"]
[Result "1-0"]
[WhiteElo "2553"]
[BlackElo "2436"]
[TimeControl "180+1"]
[EndTime "12:00:52 PST"]
[Termination "AliKa2810 won by checkmate"]

1. c4 {[%clk 0:03:00.9]} 1... e6 {[%clk 0:02:59.5]} 2. Nc3 {[%clk 0:02:59.5]}
2... d5 {[%clk 0:02:58]} 3. d4 {[%clk 0:02:59.3]} 3... c6 {[%clk 0:02:56.3]} 4.
e4 {[%clk 0:02:58.9]} 4... dxe4 {[%clk 0:02:54]} 5. Nxe4 {[%clk 0:02:59.8]} 5...
Bb4+ {[%clk 0:02:53.6]} 6. Bd2 {[%clk 0:03:00.4]} 6... Qxd4 {[%clk 0:02:53.1]}
7. Bxb4 {[%clk 0:03:01]} 7... Qxe4+ {[%clk 0:02:52.9]} 8. Be2 {[%clk 0:03:01.7]}
8... Na6 {[%clk 0:02:52.4]} 9. Ba5 {[%clk 0:02:58.9]} 9... b6 {[%clk 0:02:47.3]}
10. Qd6 {[%clk 0:02:50.7]} 10... Bd7 {[%clk 0:02:42.7]} 11. Bc3 {[%clk
0:02:28.1]} 11... f6 {[%clk 0:02:42]} 12. O-O-O {[%clk 0:02:04.8]} 12... O-O-O
{[%clk 0:02:41.3]} 13. Qa3 {[%clk 0:01:28.7]} 13... Kb7 {[%clk 0:02:40.6]} 14.
c5 {[%clk 0:01:24.8]} 14... Nc7 {[%clk 0:02:33.5]} 15. cxb6 {[%clk 0:01:19.3]}
15... axb6 {[%clk 0:02:28]} 16. Bd3 {[%clk 0:01:13.7]} 16... Qxg2 {[%clk
0:02:04.4]} 17. Ne2 {[%clk 0:01:12.8]} 17... Qg5+ {[%clk 0:02:00.4]} 18. f4
{[%clk 0:01:11]} 18... Qc5 {[%clk 0:01:50.5]} 19. Qxc5 {[%clk 0:01:09.1]} 19...
bxc5 {[%clk 0:01:50]} 20. Rhg1 {[%clk 0:01:09.7]} 20... g6 {[%clk 0:01:49.1]}
21. a4 {[%clk 0:00:48.3]} 21... Nd5 {[%clk 0:01:43.9]} 22. Be1 {[%clk
0:00:47.8]} 22... Nge7 {[%clk 0:01:42.1]} 23. Bf2 {[%clk 0:00:47.6]} 23... Nb4
{[%clk 0:01:27.6]} 24. Bc4 {[%clk 0:00:45.7]} 24... e5 {[%clk 0:01:08.5]} 25.
Bxc5 {[%clk 0:00:40.3]} 25... Ned5 {[%clk 0:01:05.3]} 26. fxe5 {[%clk
0:00:39.9]} 26... fxe5 {[%clk 0:01:04.9]} 27. Nc3 {[%clk 0:00:37.3]} 27... Bf5
{[%clk 0:00:58]} 28. a5 {[%clk 0:00:32.9]} 28... Nf4 {[%clk 0:00:43.3]} 29. Bxb4
{[%clk 0:00:30.6]} 29... Rd4 {[%clk 0:00:39.8]} 30. a6+ {[%clk 0:00:29.1]} 30...
Kb6 {[%clk 0:00:38.5]} 31. Na4+ {[%clk 0:00:25.7]} 31... Kc7 {[%clk 0:00:36.2]}
32. Ba5+ {[%clk 0:00:25.1]} 32... Kb8 {[%clk 0:00:35.9]} 33. Rxd4 {[%clk
0:00:24]} 33... exd4 {[%clk 0:00:36.1]} 34. Bb6 {[%clk 0:00:23.5]} 34... d3
{[%clk 0:00:33.7]} 35. a7+ {[%clk 0:00:22]} 35... Kb7 {[%clk 0:00:33.4]} 36. Re1
{[%clk 0:00:17.6]} 36... Ne2+ {[%clk 0:00:17.3]} 37. Kd2 {[%clk 0:00:17.9]}
37... Re8 {[%clk 0:00:17.3]} 38. Bxd3 {[%clk 0:00:16.5]} 38... Bxd3 {[%clk
0:00:16.4]} 39. Kxd3 {[%clk 0:00:17.4]} 39... Nf4+ {[%clk 0:00:16.5]} 40. Kd2
{[%clk 0:00:17.9]} 40... Rxe1 {[%clk 0:00:16.1]} 41. Kxe1 {[%clk 0:00:17.1]}
41... Nd5 {[%clk 0:00:16.4]} 42. Nc5+ {[%clk 0:00:16.6]} 42... Ka8 {[%clk
0:00:15]} 43. Nd7 {[%clk 0:00:15.7]} 43... Nxb6 {[%clk 0:00:11.1]} 44. Nxb6+
{[%clk 0:00:16.6]} 44... Kxa7 {[%clk 0:00:11.5]} 45. Nc4 {[%clk 0:00:16.9]}
45... Ka6 {[%clk 0:00:11.6]} 46. Kd2 {[%clk 0:00:17.3]} 46... Kb5 {[%clk
0:00:11.7]} 47. Kc3 {[%clk 0:00:17.8]} 47... Kc5 {[%clk 0:00:10.3]} 48. Ne3
{[%clk 0:00:17.5]} 48... h6 {[%clk 0:00:07.8]} 49. h4 {[%clk 0:00:17.4]} 49...
g5 {[%clk 0:00:07.1]} 50. h5 {[%clk 0:00:17.9]} 50... Kd6 {[%clk 0:00:06.9]} 51.
Kd4 {[%clk 0:00:16.4]} 51... Ke6 {[%clk 0:00:06.2]} 52. Ke4 {[%clk 0:00:16.6]}
52... c5 {[%clk 0:00:05.8]} 53. Nf5 {[%clk 0:00:16.1]} 53... g4 {[%clk 0:00:05]}
54. Nxh6 {[%clk 0:00:16.2]} 54... g3 {[%clk 0:00:04.8]} 55. Kf3 {[%clk
0:00:15.4]} 55... Kf6 {[%clk 0:00:04.1]} 56. Ng4+ {[%clk 0:00:15.4]} 56... Kg5
{[%clk 0:00:04.5]} 57. h6 {[%clk 0:00:15.7]} 57... g2 {[%clk 0:00:04.4]} 58.
Kxg2 {[%clk 0:00:15.9]} 58... Kxg4 {[%clk 0:00:04.8]} 59. h7 {[%clk 0:00:15.9]}
59... Kf4 {[%clk 0:00:05.2]} 60. h8=Q {[%clk 0:00:16.1]} 60... Ke3 {[%clk
0:00:05.6]} 61. Qe5+ {[%clk 0:00:15.9]} 61... Kd3 {[%clk 0:00:05.8]} 62. Kf2
{[%clk 0:00:15.8]} 62... Kc4 {[%clk 0:00:05.4]} 63. Qc3+ {[%clk 0:00:15.5]}
63... Kb5 {[%clk 0:00:05.3]} 64. Ke3 {[%clk 0:00:16]} 64... Ka4 {[%clk
0:00:05.7]} 65. Ke4 {[%clk 0:00:15.8]} 65... Kb5 {[%clk 0:00:04.7]} 66. Kd5
{[%clk 0:00:16.3]} 66... Ka4 {[%clk 0:00:05]} 67. Qc4+ {[%clk 0:00:16.6]} 67...
Ka5 {[%clk 0:00:04.6]} 68. Qxc5+ {[%clk 0:00:17]} 68... Ka4 {[%clk 0:00:04.8]}
69. Qc4+ {[%clk 0:00:17.1]} 69... Ka5 {[%clk 0:00:04.7]} 70. Qb3 {[%clk
0:00:17.1]} 70... Ka6 {[%clk 0:00:04.5]} 71. Qb4 {[%clk 0:00:17.5]} 71... Ka7
{[%clk 0:00:04.8]} 72. Qb5 {[%clk 0:00:18]} 72... Ka8 {[%clk 0:00:04.9]} 73. Kc6
{[%clk 0:00:18.5]} 73... Ka7 {[%clk 0:00:03.8]} 74. Qb7# {[%clk 0:00:18.6]} 1-0